fUSD/lending_fUSD_20251006
["ID","MTS","AMOUNT","RATE_DAILY","PERIOD"]
[389646947,1759767032226,-500.0,0.00015438,2]
[389646948,1759767032235,-500.0,0.00015438,2]
[389646949,1759767032245,-500.0,0.00015438,2]
[389646950,1759767032254,-500.0,0.00015438,2]
[389646951,1759767032264,-500.0,0.00015438,2]
[389646952,1759767032273,-329.49,0.00015438,2]
[389646953,1759767032282,-603.03876393,0.000157,5]
[389646954,1759767032321,-996.96123607,0.000157,5]
[389646955,1759767032332,-363.48,0.0001571,2]
[389646956,1759767032342,-193.27634181,0.00015781,2]
[389646957,1759767032352,-3200.0,0.000158,5]
[389646958,1759767032361,-4800.0,0.000159,5]
[389646959,1759767032371,-168.0,0.00015902,2]
[389646960,1759767032380,-305.93,0.00015905,2]
[389646961,1759767032390,-301.33,0.00015906,2]
[389646962,1759767032400,-305.89,0.00015908,2]
[389646963,1759767032409,-151.85,0.00015909,2]
[389646964,1759767032418,-152.43,0.00015909,2]
[389646965,1759767032428,-300.91,0.00015924,2]
[389646966,1759767032438,-150.62,0.00015933,2]
[389646967,1759767032448,-301.82,0.00015965,2]
[389646968,1759767032457,-193.27634181,0.00015973,2]
[389646969,1759767032466,-500.0,0.00015986,2]
[389646970,1759767032475,-805.63,0.00015986,2]
[389646971,1759767032485,-5135.97,0.00015986,2]
[389646972,1759767032494,-152.85,0.00015986,2]
[389646973,1759767032503,-433.32,0.00015986,2]
[389646974,1759767032513,-439.26,0.00015986,2]
[389646975,1759767032523,-438.03,0.00015986,2]
[389646976,1759767032532,-300.03,0.00015986,2]
[389646977,1759767032541,-440.69,0.00015986,2]
[389646978,1759767032551,-427.56,0.00015986,2]
[389646979,1759767032561,-444.62,0.00015986,2]
[389646980,1759767032571,-436.86,0.00015986,2]
[389646981,1759767032580,-437.0,0.00015986,2]
[389646982,1759767032589,-152.88,0.00015986,2]
[389646983,1759767032599,-151.03,0.00015986,2]
[389646984,1759767032608,-301.36,0.00015986,2]
[389646985,1759767032617,-442.17,0.00015986,2]
[389646986,1759767032627,-431.03,0.00015986,2]
[389646987,1759767032637,-439.58,0.00015986,2]
[389646988,1759767032647,-151.96,0.00015986,2]
[389646989,1759767032656,-436.5,0.00015986,2]
[389646990,1759767032665,-300.33,0.00015986,2]
[389646991,1759767032675,-442.54,0.00015986,2]
[389646992,1759767032684,-152.72,0.00015986,2]
[389646993,1759767032693,-151.52,0.00015986,2]
[389646994,1759767032703,-444.07,0.00015986,2]
[389646995,1759767032712,-434.44,0.00015986,2]
[389646996,1759767032722,-443.76,0.00015986,2]
[389646997,1759767032731,-303.42,0.00015986,2]
[389646998,1759767032740,-151.88,0.00015986,2]
[389646999,1759767032749,-433.51,0.00015986,2]
[389647000,1759767032758,-150.89,0.00015986,2]
[389647001,1759767032767,-312.0,0.00015991,2]
[389647002,1759767032778,-302.15,0.00016009,2]
[389647003,1759767032787,-440.08,0.0001604,2]
[389647004,1759767032796,-440.89,0.0001604,2]
[389647005,1759767032808,-168.0,0.00016045,2]
[389647006,1759767032818,-370.68887098,0.00016074,2]
[389647007,1759767032828,-619.19901135,0.00016109,2]
[389647008,1759767032838,-300.37,0.00016109,2]
[389647009,1759767032847,-4117.0,0.0001611,2]
[389647010,1759767032857,-6024.218,0.0001611,2]
[389647011,1759767032866,-168.0,0.00016112,2]
[389647012,1759767032876,-193.27634181,0.00016137,2]
[389647013,1759767032886,-168.0,0.00016174,2]
[389647014,1759767032896,-182.873,0.00016212,2]
[389647015,1759767032905,-168.0,0.00016216,2]
[389647016,1759767032914,-805.63,0.0001626,2]
[389647017,1759767032923,-5135.97,0.0001626,2]
[389647018,1759767032933,-2262.498,0.00016272,2]
[389647019,1759767032942,-1512.61589931,0.00016279,2]
[389647020,1759767032951,-168.0,0.00016281,2]
[389647021,1759767032960,-301.94,0.00016287,2]
[389647022,1759767032970,-293.9089866,0.00016297,2]
[389647023,1759767032980,-3910.46489018,0.000163,2]
[389647024,1759767032989,-1790.68918376,0.000163,2]
[389647025,1759767032998,-200.0,0.00016307,2]
[389647026,1759767033007,-289.08072692,0.00016325,2]
[389647027,1759767033020,-1223.53517239,0.00016325,2]
[389647028,1759767033033,-293.9089866,0.00016335,2]
[389647029,1759767033042,-1000.0,0.00016337,2]
[389647030,1759767033052,-1358.80601264,0.00016338,2]
[389647031,1759767033063,-153.80988667,0.00016338,2]
[389647032,1759767033073,-290.56874676,0.00016338,2]
[389647033,1759767033082,-238.36515832,0.00016338,2]
[389647034,1759767033091,-159.67604812,0.00016338,2]
[389647035,1759767033103,-6632.282,0.00016338,2]
[389647036,1759767033112,-1000.0,0.00016338,2]
[389647037,1759767033121,-5000.0,0.00016338,2]
[389647038,1759767033130,-1512.61589931,0.00016346,2]
[389647039,1759767033141,-293.9089866,0.0001635,2]
[389647040,1759767033150,-293.9089866,0.00016353,2]
[389647041,1759767033159,-400.0,0.0001637,2]
[389647042,1759767033169,-293.9089866,0.00016371,2]
[389647043,1759767033178,-2164.36,0.0001639,2]
[389647044,1759767033188,-244.88,0.0001639,2]
[389647045,1759767033198,-1512.61589931,0.00016391,2]
[389647046,1759767033208,-66219.52670076,0.000164,2]
[389647047,1759767033220,-592.16308684,0.000164,2]
[389647048,1759767033232,-4443.99999996,0.000164,2]
[389647049,1759767033244,-38854.84989174,0.000164,2]
[389647051,1759767037582,-2543.0,0.0001611,2]
[389647052,1759767037592,-244.88,0.0001639,2]
[389647053,1759767037601,-244.88,0.0001639,2]
[389647054,1759767037611,-244.88,0.0001639,2]
[389647055,1759767037621,-816.24,0.000164,2]
[389647056,1759767037632,-4679.9,0.000164,2]
[389647057,1759767037645,-2178.06256035,0.000164,2]
[389647058,1759767037656,-100000.0,0.000164,2]
[389647059,1759767037667,-10749.84378562,0.000164,2]
[389647060,1759767037697,-452.11000654,0.000164,2]
[389647061,1759767037819,-19799.5,0.000164,2]
[389647062,1759767037830,-12675.18968018,0.000164,2]
[389647063,1759767037842,-6127.66154394,0.000164,2]
[389647067,1759767037947,-373.57020428,0.000164,2]
[389647231,1759767039699,-12037.38253979,0.000164,2]
[389647233,1759767039709,-150.0,0.000164,120]
[389647235,1759767039718,-151.0,0.00016427,2]
[389647237,1759767039727,-244.88,0.00016428,2]
[389647238,1759767039737,-223.79463166,0.00016428,2]
[389647240,1759767039746,-337.080449,0.0001643,5]
[389647241,1759767039755,-214.404971,0.0001643,5]
[389647243,1759767039765,-452.921196,0.0001643,5]
[389647245,1759767039774,-337.080449,0.0001643,5]
[389647247,1759767039784,-214.404971,0.0001643,5]
[389647249,1759767039793,-452.921196,0.0001643,5]
[389647251,1759767039802,-2717.527174,0.0001643,5]
[389647253,1759767039811,-554.80469186,0.0001643,5]
[389647255,1759767039823,-2615.64367914,0.0001643,5]
[389647257,1759767039833,-220.547285,0.0001643,5]
[389647259,1759767039842,-84.67857131,0.0001643,5]
[389647261,1759767039854,-70.35031369,0.0001643,5]
[389647263,1759767039863,-172.168852,0.0001643,5]
[389647265,1759767039873,-1954.56540435,0.0001643,5]
[389647592,1759767042949,-5000.0,0.00016338,2]
[389647602,1759767043033,-2427.48042765,0.0001643,5]
[389647611,1759767043119,-2787.264623,0.0001643,5]
[389647622,1759767043212,-307.86998572,0.00016437,2]
[389647632,1759767043303,-500.0,0.00016437,2]
[389647643,1759767043401,-500.0,0.00016437,2]
[389647652,1759767043488,-500.0,0.00016437,2]
[389647662,1759767043575,-594.24627849,0.00016437,2]
[389647671,1759767043661,-500.0,0.00016437,2]
[389647672,1759767043742,-500.0,0.00016437,2]
[389647673,1759767043820,-500.0,0.00016437,2]
[389647683,1759767043905,-500.0,0.00016437,2]
[389647692,1759767043986,-500.0,0.00016437,2]
[389647700,1759767044064,-500.0,0.00016437,2]
[389647709,1759767044146,-500.0,0.00016437,2]
[389647718,1759767044225,-1000.0,0.00016437,2]
[389647727,1759767044301,-1000.0,0.00016437,2]
[389647737,1759767044383,-66925.43828424,0.00016438,2]
[389647746,1759767044459,-297.61563875,0.00016438,2]
[389647753,1759767044534,-211.56759624,0.00016438,2]
[389647763,1759767044612,-500.0,0.00016438,2]
[389647769,1759767044690,-500.0,0.00016438,2]
[389647778,1759767044762,-500.0,0.00016438,2]
[389647787,1759767044835,-500.0,0.00016438,2]
[389647795,1759767044908,-500.0,0.00016438,2]
[389647804,1759767044984,-500.0,0.00016438,2]
[389647813,1759767045058,-500.0,0.00016438,2]
[389647821,1759767045137,-500.0,0.00016438,2]
[389647831,1759767045215,-500.0,0.00016438,2]
[389647840,1759767045291,-500.0,0.00016438,2]
[389647849,1759767045368,-500.0,0.00016438,2]
[389647858,1759767045444,-500.0,0.00016438,2]
[389647868,1759767045522,-443.76420685,0.00016438,2]
[389647880,1759767045596,-337.080449,0.00016438,2]
[389647897,1759767045672,-214.404971,0.00016438,2]
[389647916,1759767045756,-452.921196,0.00016438,2]
[389647925,1759767045836,-500.0,0.00016438,2]
[389647934,1759767045914,-500.0,0.00016438,2]
[389647943,1759767045997,-510.66175532,0.00016438,2]
[389647952,1759767046080,-500.0,0.00016438,2]
[389647960,1759767046162,-363.29755315,0.00016438,2]
[389647966,1759767046248,-7371.9634023,0.00016438,2]
[389647976,1759767046335,-500.0,0.00016438,2]
[389647989,1759767046415,-500.0,0.00016438,2]
[389648003,1759767046495,-500.0,0.00016438,2]
[389648016,1759767046577,-500.0,0.00016438,2]
[389648025,1759767046661,-353.92,0.00016438,2]
[389648034,1759767046746,-634.34,0.00016438,2]
[389648044,1759767046828,-500.0,0.00016438,2]
[389648053,1759767046908,-507.12906348,0.00016438,2]
[389648063,1759767046987,-150.0,0.00016438,2]
[389648073,1759767047084,-150.0,0.00016438,2]
[389648082,1759767047167,-150.0,0.00016438,2]
[389648092,1759767047253,-151.0,0.00016438,2]
[389648101,1759767047333,-151.0,0.00016438,2]
[389648111,1759767047415,-151.0,0.00016438,2]
[389648120,1759767047499,-150.0,0.00016438,2]
[389648129,1759767047579,-150.0,0.00016438,2]
[389648167,1759767047951,-150.0,0.00016438,2]
[389648177,1759767048044,-150.0,0.00016438,2]
[389648186,1759767048133,-150.0,0.00016438,2]
[389648196,1759767048215,-150.0,0.00016438,2]
[389648204,1759767048293,-150.0,0.00016438,2]
[389648213,1759767048370,-150.0,0.00016438,2]
[389648223,1759767048446,-150.0,0.00016438,2]
[389648231,1759767048523,-1967.9978272,0.00016438,2]
[389648240,1759767048601,-337.080449,0.00016438,2]
[389648250,1759767048682,-214.404971,0.00016438,2]
[389648259,1759767048761,-452.921196,0.00016438,2]
[389648268,1759767048837,-151.0,0.00016438,2]
[389648276,1759767048911,-500.0,0.00016438,2]
[389648290,1759767048989,-500.0,0.00016438,2]
[389648300,1759767049069,-500.0,0.00016438,2]
[389648309,1759767049154,-509.43823672,0.00016438,2]
[389648319,1759767049240,-500.0,0.00016438,2]
[389648328,1759767049321,-500.0,0.00016438,2]
[389648337,1759767049402,-500.0,0.00016438,2]
[389648346,1759767049481,-500.0,0.00016438,2]
[389648354,1759767049566,-500.0,0.00016438,2]
[389648362,1759767049660,-500.0,0.00016438,2]
[389648363,1759767049755,-500.0,0.00016438,2]
[389648364,1759767049849,-500.0,0.00016438,2]
[389648365,1759767049934,-500.0,0.00016438,2]
[389648372,1759767050020,-500.0,0.00016438,2]
[389648383,1759767050118,-500.0,0.00016438,2]
[389648392,1759767050200,-500.0,0.00016438,2]
[389648401,1759767050277,-500.0,0.00016438,2]
[389648410,1759767050349,-500.0,0.00016438,2]
[389648418,1759767050421,-192.33,0.00016438,2]
[389648427,1759767050492,-237.175748,0.00016438,2]
[389648436,1759767050565,-500.0,0.00016438,2]
[389648444,1759767050636,-583.79015474,0.00016438,2]
[389648452,1759767050704,-865.16,0.00016438,2]
[389648461,1759767050775,-865.16,0.00016438,2]
[389648469,1759767050844,-865.16,0.00016438,2]
[389648477,1759767050914,-865.16,0.00016438,2]
[389648479,1759767050985,-865.16,0.00016438,2]
[389648480,1759767051056,-865.16,0.00016438,2]
[389648488,1759767051129,-865.16,0.00016438,2]
[389648497,1759767051201,-865.16,0.00016438,2]
[389648506,1759767051282,-865.16,0.00016438,2]
[389648515,1759767051362,-865.16,0.00016438,2]
[389648525,1759767051444,-865.16,0.00016438,2]
[389648536,1759767051538,-865.16,0.00016438,2]
[389648545,1759767051614,-865.16,0.00016438,2]
[389648554,1759767051687,-865.16,0.00016438,2]
[389648562,1759767051759,-865.16,0.00016438,2]
[389648571,1759767051829,-865.16,0.00016438,2]
[389648580,1759767051904,-865.16,0.00016438,2]
[389648589,1759767051981,-865.16,0.00016438,2]
[389648597,1759767052056,-865.16,0.00016438,2]
[389648604,1759767052130,-865.16,0.00016438,2]
[389648605,1759767052208,-865.16,0.00016438,2]
[389648606,1759767052286,-865.16,0.00016438,2]
[389648607,1759767052362,-865.16,0.00016438,2]
[389648608,1759767052435,-865.35,0.00016438,2]
[389648609,1759767052512,-500.0,0.00016438,2]
[389648610,1759767052588,-513.73,0.00016438,2]
[389648611,1759767052660,-500.0,0.00016438,2]
[389648612,1759767052731,-500.0,0.00016438,2]
[389648613,1759767052801,-500.0,0.00016438,2]
[389648614,1759767052868,-558.55949958,0.00016438,2]
[389648615,1759767052938,-922.46,0.00016438,2]
[389648616,1759767053013,-922.46,0.00016438,2]
[389648617,1759767053091,-922.46,0.00016438,2]
[389648618,1759767053169,-922.46,0.00016438,2]
[389648619,1759767053249,-922.46,0.00016438,2]
[389648620,1759767053329,-922.46,0.00016438,2]
[389648621,1759767053408,-922.46,0.00016438,2]
[389648622,1759767053487,-922.46,0.00016438,2]
[389648623,1759767053563,-922.46,0.00016438,2]
[389648624,1759767053634,-922.46,0.00016438,2]
[389648625,1759767053712,-922.46,0.00016438,2]
[389648626,1759767053795,-922.46,0.00016438,2]
[389648627,1759767053877,-922.46,0.00016438,2]
[389648628,1759767053958,-922.46,0.00016438,2]
[389648629,1759767054046,-922.46,0.00016438,2]
[389648630,1759767054130,-922.46,0.00016438,2]
[389648640,1759767054220,-922.46,0.00016438,2]
[389648649,1759767054303,-922.46,0.00016438,2]
[389648658,1759767054378,-922.46,0.00016438,2]
[389648667,1759767054453,-922.46,0.00016438,2]
[389648676,1759767054528,-922.46,0.00016438,2]
[389648684,1759767054602,-922.46,0.00016438,2]
[389648691,1759767054676,-922.46,0.00016438,2]
[389648698,1759767054750,-922.48,0.00016438,2]
[389648705,1759767054826,-516.3915435,0.00016438,2]
[389648711,1759767054899,-500.8343624,0.00016438,2]
[389648719,1759767054978,-642.27504366,0.00016438,2]
[389648725,1759767055055,-500.0,0.00016438,2]
[389648733,1759767055135,-500.0,0.00016438,2]
[389648741,1759767055223,-502.549226,0.00016438,2]
[389648752,1759767055334,-500.0,0.00016438,2]
[389648760,1759767055420,-500.0,0.00016438,2]
[389648768,1759767055502,-460.67206516,0.00016438,2]
[389648776,1759767055581,-151.0,0.00016438,2]
[389648783,1759767055659,-151.0,0.00016438,2]
[389648791,1759767055737,-151.0,0.00016438,2]
[389648799,1759767055817,-151.0,0.00016438,2]
[389648806,1759767055894,-151.0,0.00016438,2]
[389648814,1759767055972,-151.0,0.00016438,2]
[389648842,1759767056244,-200.161195,0.00016438,2]
[389648851,1759767056323,-500.0,0.00016438,2]
[389648857,1759767056392,-500.0,0.00016438,2]
[389648858,1759767056462,-500.0,0.00016438,2]
[389648859,1759767056530,-500.0,0.00016438,2]
[389648860,1759767056599,-212.13031025,0.00016438,2]
[389648863,1759767056671,-151.0,0.00016438,2]
[389648871,1759767056744,-190.114619,0.00016438,2]
[389648880,1759767056819,-500.0,0.00016438,2]
[389648889,1759767056894,-500.0,0.00016438,2]
[389648898,1759767056969,-440.74323941,0.00016438,2]
[389648907,1759767057043,-500.0,0.00016438,2]
[389648915,1759767057118,-500.0,0.00016438,2]
[389648925,1759767057201,-500.0,0.00016438,2]
[389648933,1759767057275,-500.0,0.00016438,2]
[389648942,1759767057351,-500.0,0.00016438,2]
[389648950,1759767057426,-500.0,0.00016438,2]
[389648959,1759767057498,-500.0,0.00016438,2]
[389648967,1759767057573,-500.0,0.00016438,2]
[389648975,1759767057647,-500.0,0.00016438,2]
[389648984,1759767057718,-501.73454841,0.00016438,2]
[389648992,1759767057789,-503.66597887,0.00016438,2]
[389649001,1759767057861,-500.0,0.00016438,2]
[389649009,1759767057932,-500.0,0.00016438,2]
[389649018,1759767058008,-500.0,0.00016438,2]
[389649026,1759767058084,-151.0,0.00016438,2]
[389649034,1759767058159,-151.0,0.00016438,2]
[389649043,1759767058234,-151.0,0.00016438,2]
[389649051,1759767058306,-151.0,0.00016438,2]
[389649060,1759767058382,-500.0,0.00016438,2]
[389649069,1759767058457,-500.0,0.00016438,2]
[389649078,1759767058530,-500.0,0.00016438,2]
[389649086,1759767058600,-500.0,0.00016438,2]
[389649095,1759767058673,-500.0,0.00016438,2]
[389649103,1759767058744,-500.0,0.00016438,2]
[389649112,1759767058819,-500.0,0.00016438,2]
[389649121,1759767058893,-500.0,0.00016438,2]
[389649130,1759767058970,-500.0,0.00016438,2]
[389649140,1759767059063,-197.725181,0.00016438,2]
[389649149,1759767059141,-500.0,0.00016438,2]
[389649159,1759767059231,-500.0,0.00016438,2]
[389649169,1759767059318,-500.0,0.00016438,2]
[389649178,1759767059402,-242.034596,0.00016438,2]
[389649187,1759767059478,-500.0,0.00016438,2]
[389649195,1759767059549,-242.034596,0.00016438,2]
[389649204,1759767059627,-500.0,0.00016438,2]
[389649213,1759767059705,-242.034596,0.00016438,2]
[389649221,1759767059775,-500.0,0.00016438,2]
[389649229,1759767059848,-500.0,0.00016438,2]
[389649236,1759767059920,-242.034596,0.00016438,2]
[389649237,1759767059991,-500.0,0.00016438,2]
[389649240,1759767060068,-242.034596,0.00016438,2]
[389649249,1759767060150,-500.0,0.00016438,2]
[389649258,1759767060233,-242.034596,0.00016438,2]
[389649267,1759767060314,-500.0,0.00016438,2]
[389649276,1759767060401,-500.0,0.00016438,2]
[389649285,1759767060476,-500.0,0.00016438,2]
[389649293,1759767060551,-279.01535693,0.00016438,2]
[389649302,1759767060626,-242.034596,0.00016438,2]
[389649311,1759767060698,-242.034596,0.00016438,2]
[389649320,1759767060774,-242.034596,0.00016438,2]
[389649328,1759767060851,-242.034596,0.00016438,2]
[389649337,1759767060925,-242.034596,0.00016438,2]
[389649346,1759767060999,-242.034596,0.00016438,2]
[389649353,1759767061071,-500.0,0.00016438,2]
[389649362,1759767061150,-500.0,0.00016438,2]
[389649371,1759767061227,-500.0,0.00016438,2]
[389649379,1759767061298,-500.0,0.00016438,2]
[389649388,1759767061375,-500.0,0.00016438,2]
[389649396,1759767061446,-500.0,0.00016438,2]
[389649405,1759767061518,-500.0,0.00016438,2]
[389649413,1759767061590,-500.0,0.00016438,2]
[389649421,1759767061663,-500.0,0.00016438,2]
[389649430,1759767061739,-500.0,0.00016438,2]
[389649439,1759767061815,-500.0,0.00016438,2]
[389649448,1759767061894,-500.0,0.00016438,2]
[389649456,1759767061970,-500.0,0.00016438,2]
[389649464,1759767062046,-217.84772999,0.00016438,2]
[389649472,1759767062121,-500.0,0.00016438,2]
[389649481,1759767062200,-500.0,0.00016438,2]
[389649491,1759767062279,-573.80675714,0.00016438,2]
[389649499,1759767062354,-500.0,0.00016438,2]
[389649508,1759767062431,-500.0,0.00016438,2]
[389649516,1759767062510,-500.0,0.00016438,2]
[389649524,1759767062593,-500.0,0.00016438,2]
[389649533,1759767062675,-500.0,0.00016438,2]
[389649542,1759767062755,-500.0,0.00016438,2]
[389649551,1759767062833,-500.0,0.00016438,2]
[389649560,1759767062909,-500.0,0.00016438,2]
[389649569,1759767062984,-500.0,0.00016438,2]
[389649577,1759767063062,-500.0,0.00016438,2]
[389649587,1759767063145,-500.0,0.00016438,2]
[389649596,1759767063228,-500.0,0.00016438,2]
[389649606,1759767063323,-500.0,0.00016438,2]
[389649616,1759767063415,-500.0,0.00016438,2]
[389649626,1759767063500,-500.0,0.00016438,2]
[389649636,1759767063593,-500.0,0.00016438,2]
[389649646,1759767063680,-500.0,0.00016438,2]
[389649657,1759767063769,-500.0,0.00016438,2]
[389649666,1759767063853,-500.0,0.00016438,2]
[389649676,1759767063937,-325.67,0.00016438,2]
[389649686,1759767064018,-500.0,0.00016438,2]
[389649695,1759767064111,-500.0,0.00016438,2]
[389649719,1759767064358,-500.0,0.00016438,2]
[389649729,1759767064445,-500.0,0.00016438,2]
[389649738,1759767064533,-500.0,0.00016438,2]
[389649747,1759767064614,-500.0,0.00016438,2]
[389649756,1759767064692,-500.0,0.00016438,2]
[389649766,1759767064777,-500.0,0.00016438,2]
[389649775,1759767064861,-500.0,0.00016438,2]
[389649784,1759767064946,-500.0,0.00016438,2]
[389649794,1759767065031,-500.0,0.00016438,2]
[389649803,1759767065117,-500.0,0.00016438,2]
[389649812,1759767065201,-500.0,0.00016438,2]
[389649821,1759767065284,-500.0,0.00016438,2]
[389649830,1759767065365,-500.0,0.00016438,2]
[389649838,1759767065445,-500.0,0.00016438,2]
[389649847,1759767065524,-500.0,0.00016438,2]
[389649856,1759767065605,-500.0,0.00016438,2]
[389649864,1759767065682,-500.0,0.00016438,2]
[389649873,1759767065756,-500.0,0.00016438,2]
[389649882,1759767065837,-500.0,0.00016438,2]
[389649891,1759767065915,-500.0,0.00016438,2]
[389649901,1759767066005,-285.8076951,0.00016438,2]
[389649910,1759767066089,-586.22392925,0.00016438,2]
[389649919,1759767066172,-653.57,0.00016438,2]
[389649928,1759767066253,-653.57,0.00016438,2]
[389649937,1759767066333,-500.0,0.00016438,2]
[389649945,1759767066414,-653.57,0.00016438,2]
[389649954,1759767066493,-500.0,0.00016438,2]
[389649963,1759767066570,-500.0,0.00016438,2]
[389649971,1759767066644,-653.57,0.00016438,2]
[389649980,1759767066724,-653.57,0.00016438,2]
[389649988,1759767066799,-500.0,0.00016438,2]
[389649997,1759767066879,-500.0,0.00016438,2]
[389650006,1759767066963,-500.0,0.00016438,2]
[389650014,1759767067047,-500.0,0.00016438,2]
[389650015,1759767067127,-500.0,0.00016438,2]
[389650019,1759767067215,-500.0,0.00016438,2]
[389650029,1759767067307,-500.0,0.00016438,2]
[389650039,1759767067389,-500.0,0.00016438,2]
[389650047,1759767067471,-500.0,0.00016438,2]
[389650057,1759767067547,-500.0,0.00016438,2]
[389650065,1759767067631,-153.087005,0.00016438,2]
[389650074,1759767067713,-500.0,0.00016438,2]
[389650083,1759767067794,-500.0,0.00016438,2]
[389650092,1759767067872,-500.0,0.00016438,2]
[389650100,1759767067949,-500.0,0.00016438,2]
[389650109,1759767068032,-500.0,0.00016438,2]
[389650118,1759767068113,-500.0,0.00016438,2]
[389650127,1759767068194,-500.0,0.00016438,2]
[389650136,1759767068284,-500.0,0.00016438,2]
[389650145,1759767068365,-500.0,0.00016438,2]
[389650154,1759767068447,-500.0,0.00016438,2]
[389650163,1759767068524,-500.0,0.00016438,2]
[389650171,1759767068598,-500.0,0.00016438,2]
[389650179,1759767068676,-500.0,0.00016438,2]
[389650189,1759767068760,-500.0,0.00016438,2]
[389650198,1759767068843,-372.4,0.00016438,2]
[389650206,1759767068923,-653.57,0.00016438,2]
[389650216,1759767069007,-653.57,0.00016438,2]
[389650224,1759767069099,-653.57,0.00016438,2]
[389650234,1759767069195,-653.57,0.00016438,2]
[389650245,1759767069295,-653.57,0.00016438,2]
[389650254,1759767069385,-653.57,0.00016438,2]
[389650264,1759767069471,-653.57,0.00016438,2]
[389650273,1759767069550,-653.57,0.00016438,2]
[389650282,1759767069635,-653.57,0.00016438,2]
[389650286,1759767069714,-653.57,0.00016438,2]
[389650296,1759767069796,-653.57,0.00016438,2]
[389650305,1759767069875,-653.57,0.00016438,2]
[389650314,1759767069957,-653.57,0.00016438,2]
[389650323,1759767070043,-653.57,0.00016438,2]
[389650331,1759767070124,-653.57,0.00016438,2]
[389650340,1759767070202,-653.57,0.00016438,2]
[389650349,1759767070278,-653.57,0.00016438,2]
[389650358,1759767070358,-653.57,0.00016438,2]
[389650367,1759767070434,-653.62415347,0.00016438,2]
[389650375,1759767070509,-2717.527174,0.00016438,2]
[389650383,1759767070580,-151.0,0.00016438,2]
[389650391,1759767070653,-151.0,0.00016438,2]
[389650400,1759767070730,-151.0,0.00016438,2]
[389650408,1759767070807,-500.0,0.00016438,2]
[389650417,1759767070883,-501.0314483,0.00016438,2]
[389650426,1759767070961,-151.0,0.00016438,2]
[389650434,1759767071038,-151.0,0.00016438,2]
[389650442,1759767071115,-183.183908,0.00016438,2]
[389650451,1759767071197,-3170.448371,0.00016438,2]
[389650460,1759767071278,-2624.02,0.00016438,2]
[389650470,1759767071366,-2624.02,0.00016438,2]
[389650479,1759767071448,-2624.02,0.00016438,2]
[389650487,1759767071528,-2624.02,0.00016438,2]
[389650495,1759767071609,-2624.02,0.00016438,2]
[389650505,1759767071696,-2624.02,0.00016438,2]
[389650514,1759767071785,-2624.02,0.00016438,2]
[389650523,1759767071868,-2624.02,0.00016438,2]
[389650531,1759767071950,-151.0,0.00016438,2]
[389650540,1759767072037,-2624.02,0.00016438,2]
[389650548,1759767072122,-152.6754,0.00016438,2]
[389650557,1759767072211,-2624.02,0.00016438,2]
[389650567,1759767072305,-2624.02,0.00016438,2]
[389650576,1759767072389,-2624.02,0.00016438,2]
[389650578,1759767072468,-220.547285,0.00016438,2]